[Event "*** Titled Tuesday Blitz"]
[Site "Chess.com"]
[Date "2020.12.29"]
[Round "4"]
[White "vladimirdamjanovic"]
[Black "Sharpchess22"]
[Result "1-0"]
[WhiteElo "2393"]
[BlackElo "2801"]
[TimeControl "180+1"]
[EndTime "10:39:34 PST"]
[Termination "vladimirdamjanovic won by checkmate"]

1. d4 {[%clk 0:03:00.9]} 1... Nf6 {[%clk 0:02:58.9]} 2. Nc3 {[%clk 0:02:59.3]}
2... d5 {[%clk 0:02:58.2]} 3. Bf4 {[%clk 0:02:58.5]} 3... a6 {[%clk 0:02:56.9]}
4. e3 {[%clk 0:02:54.4]} 4... c5 {[%clk 0:02:56]} 5. dxc5 {[%clk 0:02:30.7]}
5... e6 {[%clk 0:02:53.6]} 6. Na4 {[%clk 0:02:13.6]} 6... Bxc5 {[%clk
0:02:52.2]} 7. Nxc5 {[%clk 0:02:13.4]} 7... Qa5+ {[%clk 0:02:52.1]} 8. c3 {[%clk
0:02:11.9]} 8... Qxc5 {[%clk 0:02:51.6]} 9. Nf3 {[%clk 0:02:08.1]} 9... Nc6
{[%clk 0:02:46.6]} 10. h3 {[%clk 0:01:53.6]} 10... O-O {[%clk 0:02:44.3]} 11.
Bd3 {[%clk 0:01:52.6]} 11... Qe7 {[%clk 0:02:41.9]} 12. Ne5 {[%clk 0:01:52.1]}
12... Nd7 {[%clk 0:02:40.1]} 13. Nxd7 {[%clk 0:01:21.2]} 13... Bxd7 {[%clk
0:02:38]} 14. O-O {[%clk 0:01:16.3]} 14... e5 {[%clk 0:02:32.2]} 15. Bg3 {[%clk
0:01:12.9]} 15... Be6 {[%clk 0:02:28]} 16. f4 {[%clk 0:01:00.9]} 16... e4 {[%clk
0:02:22.5]} 17. Bc2 {[%clk 0:00:53.1]} 17... f5 {[%clk 0:02:16.2]} 18. Bb3
{[%clk 0:00:36.7]} 18... Kh8 {[%clk 0:02:09]} 19. Qe1 {[%clk 0:00:31.1]} 19...
b5 {[%clk 0:02:03.5]} 20. Rd1 {[%clk 0:00:30.8]} 20... Qf7 {[%clk 0:02:00.5]}
21. Qd2 {[%clk 0:00:22.1]} 21... Rfd8 {[%clk 0:01:58.9]} 22. Bh4 {[%clk
0:00:20.2]} 22... Rd7 {[%clk 0:01:58.2]} 23. Qe2 {[%clk 0:00:18.3]} 23... Rb8
{[%clk 0:01:47.5]} 24. Rd2 {[%clk 0:00:18.2]} 24... a5 {[%clk 0:01:43]} 25. a3
{[%clk 0:00:17.1]} 25... a4 {[%clk 0:01:41.1]} 26. Ba2 {[%clk 0:00:17.1]} 26...
Na5 {[%clk 0:01:40.8]} 27. Rd4 {[%clk 0:00:14.8]} 27... Nc4 {[%clk 0:01:37.1]}
28. Re1 {[%clk 0:00:12.7]} 28... h6 {[%clk 0:01:33.5]} 29. Qc2 {[%clk
0:00:07.5]} 29... Kh7 {[%clk 0:01:27.3]} 30. Re2 {[%clk 0:00:07.4]} 30... Ra8
{[%clk 0:01:24.2]} 31. Kh2 {[%clk 0:00:05.1]} 31... Qh5 {[%clk 0:01:21.1]} 32.
Bg3 {[%clk 0:00:04.7]} 32... g5 {[%clk 0:01:20.8]} 33. fxg5 {[%clk 0:00:03.9]}
33... hxg5 {[%clk 0:01:20.5]} 34. Bxc4 {[%clk 0:00:02.8]} 34... bxc4 {[%clk
0:01:19.8]} 35. Rf2 {[%clk 0:00:02.8]} 35... Rb7 {[%clk 0:01:15]} 36. Kg1 {[%clk
0:00:02.1]} 36... Qg6 {[%clk 0:01:11.1]} 37. Be5 {[%clk 0:00:02.1]} 37... Ra6
{[%clk 0:01:08.6]} 38. Kh2 {[%clk 0:00:02.3]} 38... Rb3 {[%clk 0:01:03.9]} 39.
Kg1 {[%clk 0:00:02.5]} 39... Rab6 {[%clk 0:01:03.6]} 40. Qc1 {[%clk 0:00:03.2]}
40... Qh5 {[%clk 0:00:58.4]} 41. Rdd2 {[%clk 0:00:02.2]} 41... Kg6 {[%clk
0:00:47.4]} 42. Qf1 {[%clk 0:00:02.1]} 42... Kf7 {[%clk 0:00:17.7]} 43. g4
{[%clk 0:00:02.3]} 43... Qh6 {[%clk 0:00:12.9]} 44. gxf5 {[%clk 0:00:01.8]}
44... Bc8 {[%clk 0:00:13]} 45. Rxd5 {[%clk 0:00:02.1]} 45... Rxb2 {[%clk
0:00:12.1]} 46. Qxc4 {[%clk 0:00:02.4]} 46... Rb1+ {[%clk 0:00:09.6]} 47. Kg2
{[%clk 0:00:02.6]} 47... Ba6 {[%clk 0:00:06.9]} 48. Rd7+ {[%clk 0:00:02.7]}
48... Ke8 {[%clk 0:00:06.9]} 49. Qf7# {[%clk 0:00:03.3]} 1-0

[Event "*** Titled Tuesday Blitz"]
[Site "Chess.com"]
[Date "2020.12.29"]
[Round "4"]
[White "RobertoJBM"]
[Black "MFBerna"]
[Result "1-0"]
[WhiteElo "2707"]
[BlackElo "2461"]
[TimeControl "180+1"]
[EndTime "10:39:36 PST"]
[Termination "RobertoJBM won on time"]

1. d4 {[%clk 0:02:57.9]} 1... d5 {[%clk 0:02:59.6]} 2. c4 {[%clk 0:02:57.4]}
2... e6 {[%clk 0:02:58.8]} 3. Nc3 {[%clk 0:02:55.4]} 3... Be7 {[%clk 0:02:58.7]}
4. cxd5 {[%clk 0:02:53.9]} 4... exd5 {[%clk 0:02:58.4]} 5. Bf4 {[%clk
0:02:54.5]} 5... c6 {[%clk 0:02:58.4]} 6. e3 {[%clk 0:02:54.7]} 6... Bf5 {[%clk
0:02:58.8]} 7. g4 {[%clk 0:02:49.9]} 7... Be6 {[%clk 0:02:58.5]} 8. h4 {[%clk
0:02:49.8]} 8... Nf6 {[%clk 0:02:46.3]} 9. g5 {[%clk 0:02:44.9]} 9... Ne4 {[%clk
0:02:43.2]} 10. Nge2 {[%clk 0:02:28.2]} 10... Bf5 {[%clk 0:02:19.8]} 11. f3
{[%clk 0:02:20.5]} 11... Nxc3 {[%clk 0:02:12.5]} 12. Nxc3 {[%clk 0:02:21.4]}
12... Bd6 {[%clk 0:02:02.1]} 13. Bxd6 {[%clk 0:01:43.3]} 13... Qxd6 {[%clk
0:02:03]} 14. Qd2 {[%clk 0:01:43.6]} 14... Nd7 {[%clk 0:01:53.4]} 15. Qh2 {[%clk
0:01:36.5]} 15... Qxh2 {[%clk 0:01:39]} 16. Rxh2 {[%clk 0:01:37.4]} 16... h6
{[%clk 0:01:32.1]} 17. e4 {[%clk 0:01:11.8]} 17... dxe4 {[%clk 0:01:26.4]} 18.
fxe4 {[%clk 0:01:12.7]} 18... Bg4 {[%clk 0:01:14.5]} 19. gxh6 {[%clk 0:01:02]}
19... Rxh6 {[%clk 0:01:14.2]} 20. Bc4 {[%clk 0:00:49.2]} 20... Nb6 {[%clk
0:00:57.7]} 21. Bb3 {[%clk 0:00:48.5]} 21... O-O-O {[%clk 0:00:52.6]} 22. d5
{[%clk 0:00:25.1]} 22... cxd5 {[%clk 0:00:47.1]} 23. exd5 {[%clk 0:00:25]} 23...
g5 {[%clk 0:00:38.2]} 24. Rc1 {[%clk 0:00:21.6]} 24... Kb8 {[%clk 0:00:38]} 25.
Kf2 {[%clk 0:00:17]} 25... Rdh8 {[%clk 0:00:34.4]} 26. Rg1 {[%clk 0:00:16]}
26... Rxh4 {[%clk 0:00:32.4]} 27. Rxh4 {[%clk 0:00:14.3]} 27... Rxh4 {[%clk
0:00:33.3]} 28. Ne4 {[%clk 0:00:14.2]} 28... Bf5 {[%clk 0:00:17.9]} 29. Nxg5
{[%clk 0:00:13.6]} 29... Rh2+ {[%clk 0:00:15.9]} 30. Ke3 {[%clk 0:00:13.3]}
30... Rxb2 {[%clk 0:00:15.4]} 31. Nxf7 {[%clk 0:00:13.4]} 31... a5 {[%clk
0:00:14.1]} 32. Nd6 {[%clk 0:00:09.4]} 32... Bc2 {[%clk 0:00:09]} 33. Rg7 {[%clk
0:00:08.4]} 33... Bxb3 {[%clk 0:00:08.2]} 34. Rxb7+ {[%clk 0:00:07.5]} 34... Ka8
{[%clk 0:00:08.6]} 35. Rxb6 {[%clk 0:00:08.1]} 35... a4 {[%clk 0:00:08.9]} 36.
axb3 {[%clk 0:00:07.7]} 36... axb3 {[%clk 0:00:05.4]} 37. Nc4 {[%clk 0:00:07.4]}
37... Rc2 {[%clk 0:00:03.8]} 38. Kd3 {[%clk 0:00:07.2]} 38... Rc1 {[%clk
0:00:02]} 39. Rxb3 {[%clk 0:00:07.2]} 39... Ka7 {[%clk 0:00:01.9]} 40. Nd2
{[%clk 0:00:07.3]} 40... Rh1 {[%clk 0:00:01.6]} 41. d6 {[%clk 0:00:07.1]} 41...
Rh3+ {[%clk 0:00:02]} 42. Kd4 {[%clk 0:00:07.1]} 42... Rh4+ {[%clk 0:00:02]} 43.
Ne4 {[%clk 0:00:07.3]} 43... Rh7 {[%clk 0:00:02.1]} 44. Kd5 {[%clk 0:00:07.4]}
44... Rh1 {[%clk 0:00:01.8]} 45. d7 {[%clk 0:00:06.3]} 45... Rd1+ {[%clk
0:00:01.8]} 46. Kc6 {[%clk 0:00:06.6]} 46... Rc1+ {[%clk 0:00:01.6]} 47. Nc5
{[%clk 0:00:06.6]} 47... Rd1 {[%clk 0:00:01.2]} 48. Rd3 {[%clk 0:00:06.3]} 1-0

[Event "*** Titled Tuesday Blitz"]
[Site "Chess.com"]
[Date "2020.12.29"]
[Round "4"]
[White "Slovak_fighter2000"]
[Black "Dinamo81"]
[Result "1/2-1/2"]
[WhiteElo "2484"]
[BlackElo "2662"]
[TimeControl "180+1"]
[EndTime "10:39:37 PST"]
[Termination "Game drawn by repetition"]

1. d4 {[%clk 0:02:55.8]} 1... d5 {[%clk 0:02:58.9]} 2. Nf3 {[%clk 0:02:55.9]}
2... e6 {[%clk 0:02:57.5]} 3. Bf4 {[%clk 0:02:56.5]} 3... Bd6 {[%clk 0:02:56.3]}
4. Bg3 {[%clk 0:02:56]} 4... Nf6 {[%clk 0:02:55.7]} 5. e3 {[%clk 0:02:53.9]}
5... O-O {[%clk 0:02:54.6]} 6. Bd3 {[%clk 0:02:52.7]} 6... c5 {[%clk 0:02:53.9]}
7. c3 {[%clk 0:02:52.3]} 7... b6 {[%clk 0:02:53.7]} 8. Qe2 {[%clk 0:02:51.7]}
8... Bb7 {[%clk 0:02:51.3]} 9. Nbd2 {[%clk 0:02:47.7]} 9... Ne4 {[%clk
0:02:49.8]} 10. Bxd6 {[%clk 0:02:46.1]} 10... Qxd6 {[%clk 0:02:47.9]} 11. O-O
{[%clk 0:02:46.3]} 11... Nd7 {[%clk 0:02:44.9]} 12. Rfd1 {[%clk 0:02:23.6]}
12... Qc7 {[%clk 0:02:31.8]} 13. c4 {[%clk 0:02:20.1]} 13... cxd4 {[%clk
0:02:15.3]} 14. Nxd4 {[%clk 0:02:09.2]} 14... Ndc5 {[%clk 0:02:08.3]} 15. Bxe4
{[%clk 0:02:02.2]} 15... dxe4 {[%clk 0:02:06.4]} 16. N4b3 {[%clk 0:01:42.4]}
16... Na4 {[%clk 0:01:50.8]} 17. Nf1 {[%clk 0:01:36.1]} 17... Rac8 {[%clk
0:01:43.6]} 18. Rac1 {[%clk 0:01:33.3]} 18... Rfd8 {[%clk 0:01:42.8]} 19. Nd4
{[%clk 0:01:28.1]} 19... Qe5 {[%clk 0:01:30.2]} 20. b3 {[%clk 0:01:20.6]} 20...
Nc5 {[%clk 0:01:28.6]} 21. Ng3 {[%clk 0:01:07.5]} 21... Nd3 {[%clk 0:01:18]} 22.
Rc2 {[%clk 0:01:06.9]} 22... f5 {[%clk 0:01:12.8]} 23. Qh5 {[%clk 0:00:57.3]}
23... Rxd4 {[%clk 0:01:10.4]} 24. exd4 {[%clk 0:00:56.2]} 24... Qxd4 {[%clk
0:01:11.3]} 25. Qg5 {[%clk 0:00:38.6]} 25... Qc5 {[%clk 0:00:55.6]} 26. Nh5
{[%clk 0:00:33.1]} 26... Qf8 {[%clk 0:00:49.8]} 27. Nf4 {[%clk 0:00:31.5]} 27...
Qf7 {[%clk 0:00:46]} 28. Nxd3 {[%clk 0:00:28.6]} 28... exd3 {[%clk 0:00:44.3]}
29. Rxd3 {[%clk 0:00:29.5]} 29... h6 {[%clk 0:00:41.6]} 30. Rd8+ {[%clk
0:00:26]} 30... Kh7 {[%clk 0:00:40.5]} 31. Qd2 {[%clk 0:00:26.1]} 31... Qg6
{[%clk 0:00:38.4]} 32. g3 {[%clk 0:00:11.1]} 32... Rxd8 {[%clk 0:00:25.5]} 33.
Qxd8 {[%clk 0:00:09.8]} 33... Qg4 {[%clk 0:00:25.4]} 34. Qd3 {[%clk 0:00:07.5]}
34... Be4 {[%clk 0:00:24.8]} 35. Qe2 {[%clk 0:00:06.4]} 35... Bxc2 {[%clk
0:00:21.6]} 36. Qxc2 {[%clk 0:00:05.6]} 36... Qf3 {[%clk 0:00:21.7]} 37. b4
{[%clk 0:00:04.6]} 37... Qc6 {[%clk 0:00:15.3]} 38. c5 {[%clk 0:00:04.9]} 38...
Kg6 {[%clk 0:00:14.8]} 39. Qc3 {[%clk 0:00:04.3]} 39... Kf7 {[%clk 0:00:14.4]}
40. Qc2 {[%clk 0:00:04.7]} 40... Ke7 {[%clk 0:00:13.7]} 41. Qc3 {[%clk
0:00:05.2]} 41... Kf7 {[%clk 0:00:12.5]} 42. Qc2 {[%clk 0:00:05.6]} 42... bxc5
{[%clk 0:00:11.9]} 43. bxc5 {[%clk 0:00:05.5]} 43... Ke7 {[%clk 0:00:12]} 44.
Qc3 {[%clk 0:00:06]} 44... Kf7 {[%clk 0:00:11.5]} 45. Qe5 {[%clk 0:00:06.2]}
45... Qd7 {[%clk 0:00:10]} 46. Qc3 {[%clk 0:00:05.8]} 46... Qd1+ {[%clk
0:00:09.6]} 47. Kg2 {[%clk 0:00:06.3]} 47... Qd5+ {[%clk 0:00:10.5]} 48. Kg1
{[%clk 0:00:06.7]} 48... Qc6 {[%clk 0:00:09.7]} 49. Qe5 {[%clk 0:00:06.8]} 49...
Qd7 {[%clk 0:00:08.1]} 50. Qc3 {[%clk 0:00:06.6]} 50... Qd1+ {[%clk 0:00:07.5]}
51. Kg2 {[%clk 0:00:06.9]} 51... Qd5+ {[%clk 0:00:08.1]} 52. Kg1 {[%clk
0:00:07.4]} 52... Qc6 {[%clk 0:00:08.1]} 1/2-1/2

[Event "*** Titled Tuesday Blitz"]
[Site "Chess.com"]
[Date "2020.12.29"]
[Round "4"]
[White "Blitzking642"]
[Black "dopolian"]
[Result "0-1"]
[WhiteElo "2299"]
[BlackElo "2459"]
[TimeControl "180+1"]
[EndTime "10:39:38 PST"]
[Termination "dopolian won on time"]

1. e4 {[%clk 0:03:00.9]} 1... Nc6 {[%clk 0:02:59.5]} 2. Nf3 {[%clk 0:02:58.9]}
2... e5 {[%clk 0:02:59.9]} 3. Bc4 {[%clk 0:02:58.3]} 3... Bc5 {[%clk 0:02:58.6]}
4. O-O {[%clk 0:02:54.1]} 4... Nf6 {[%clk 0:02:57.7]} 5. d3 {[%clk 0:02:54]}
5... O-O {[%clk 0:02:56.1]} 6. c3 {[%clk 0:02:52.6]} 6... d5 {[%clk 0:02:51.8]}
7. exd5 {[%clk 0:02:51.9]} 7... Nxd5 {[%clk 0:02:52.7]} 8. Re1 {[%clk
0:02:51.3]} 8... Bg4 {[%clk 0:02:51.5]} 9. h3 {[%clk 0:02:50]} 9... Bh5 {[%clk
0:02:49.1]} 10. Nbd2 {[%clk 0:02:50.5]} 10... Bb6 {[%clk 0:02:44.2]} 11. Ne4
{[%clk 0:02:47.9]} 11... f6 {[%clk 0:02:37.6]} 12. Ng3 {[%clk 0:02:28]} 12...
Bf7 {[%clk 0:02:36.4]} 13. Bb3 {[%clk 0:02:02.9]} 13... Qd7 {[%clk 0:02:29.7]}
14. Bc2 {[%clk 0:01:55]} 14... Rfd8 {[%clk 0:02:23.2]} 15. Qe2 {[%clk
0:01:53.1]} 15... a5 {[%clk 0:02:10]} 16. a4 {[%clk 0:01:51.1]} 16... Nce7
{[%clk 0:01:54.5]} 17. Bd2 {[%clk 0:01:48.1]} 17... Ng6 {[%clk 0:01:53.9]} 18.
Nh5 {[%clk 0:01:33.5]} 18... Qf5 {[%clk 0:01:43.6]} 19. g4 {[%clk 0:01:27.9]}
19... Qd7 {[%clk 0:01:42]} 20. Rad1 {[%clk 0:01:17.5]} 20... Re8 {[%clk
0:01:35.3]} 21. Qf1 {[%clk 0:00:53.5]} 21... f5 {[%clk 0:01:32.8]} 22. Qg2
{[%clk 0:00:50.5]} 22... fxg4 {[%clk 0:01:21.9]} 23. hxg4 {[%clk 0:00:47.3]}
23... Be6 {[%clk 0:01:22.2]} 24. Nxe5 {[%clk 0:00:43.2]} 24... Nxe5 {[%clk
0:01:20.5]} 25. Rxe5 {[%clk 0:00:43.7]} 25... Bf7 {[%clk 0:00:59.1]} 26. Rde1
{[%clk 0:00:36.9]} 26... c6 {[%clk 0:00:54.3]} 27. d4 {[%clk 0:00:33.2]} 27...
Rxe5 {[%clk 0:00:52.3]} 28. Rxe5 {[%clk 0:00:32.4]} 28... Bc7 {[%clk 0:00:50.6]}
29. Rg5 {[%clk 0:00:28.6]} 29... Bxh5 {[%clk 0:00:46.6]} 30. gxh5 {[%clk
0:00:27.8]} 30... Re8 {[%clk 0:00:36.4]} 31. h6 {[%clk 0:00:25]} 31... g6 {[%clk
0:00:35.5]} 32. Bf5 {[%clk 0:00:10]} 32... Qf7 {[%clk 0:00:29.6]} 33. Qg4 {[%clk
0:00:05.3]} 33... Kh8 {[%clk 0:00:20.2]} 34. Bd3 {[%clk 0:00:04.8]} 34... Bf4
{[%clk 0:00:16.1]} 35. Bxf4 {[%clk 0:00:03.8]} 35... Nxf4 {[%clk 0:00:16.6]} 36.
Bf1 {[%clk 0:00:03.6]} 36... Nd5 {[%clk 0:00:09]} 37. Re5 {[%clk 0:00:03.3]}
37... Rf8 {[%clk 0:00:07.6]} 38. Qg3 {[%clk 0:00:02.1]} 38... Nf4 {[%clk
0:00:05.7]} 39. Re4 {[%clk 0:00:01.8]} 39... Nd5 {[%clk 0:00:04.7]} 40. Qe5+
{[%clk 0:00:01.9]} 40... Kg8 {[%clk 0:00:03.8]} 41. Qg3 {[%clk 0:00:02.4]} 41...
Qf5 {[%clk 0:00:02.9]} 42. Re5 {[%clk 0:00:02.1]} 42... Qb1 {[%clk 0:00:02.8]}
43. Re2 {[%clk 0:00:01.3]} 43... Qc1 {[%clk 0:00:02.1]} 44. Qe5 {[%clk
0:00:01.7]} 44... Qxh6 {[%clk 0:00:02.3]} 45. Qe6+ {[%clk 0:00:02.2]} 45... Kh8
{[%clk 0:00:02.1]} 46. Qe5+ {[%clk 0:00:02.7]} 46... Qg7 {[%clk 0:00:02.3]} 47.
Qxg7+ {[%clk 0:00:01.8]} 47... Kxg7 {[%clk 0:00:03.2]} 48. Re4 {[%clk 0:00:02]}
48... Rf7 {[%clk 0:00:02.9]} 49. c4 {[%clk 0:00:02.5]} 49... Re7 {[%clk
0:00:02.3]} 50. Rg4 {[%clk 0:00:01.5]} 50... Nf6 {[%clk 0:00:02]} 51. Rf4 {[%clk
0:00:01.3]} 51... Re4 {[%clk 0:00:02.3]} 0-1

[Event "*** Titled Tuesday Blitz"]
[Site "Chess.com"]
[Date "2020.12.29"]
[Round "4"]
[White "Bigfish1995"]
[Black "Gabrielian_Artur"]
[Result "1-0"]
[WhiteElo "3011"]
[BlackElo "2790"]
[TimeControl "180+1"]
[EndTime "10:39:39 PST"]
[Termination "Bigfish1995 won on time"]

1. e4 {[%clk 0:03:00.9]} 1... c5 {[%clk 0:02:59.7]} 2. Nf3 {[%clk 0:03:00.8]}
2... d6 {[%clk 0:02:59.8]} 3. d4 {[%clk 0:02:55.7]} 3... cxd4 {[%clk 0:02:59.9]}
4. Nxd4 {[%clk 0:02:55.3]} 4... Nf6 {[%clk 0:02:59.8]} 5. Nc3 {[%clk 0:02:55.7]}
5... Nc6 {[%clk 0:02:59.7]} 6. Bg5 {[%clk 0:02:53.1]} 6... e6 {[%clk 0:02:59.5]}
7. Qd2 {[%clk 0:02:53.2]} 7... a6 {[%clk 0:02:59.7]} 8. O-O-O {[%clk 0:02:52.6]}
8... Bd7 {[%clk 0:02:59.7]} 9. f4 {[%clk 0:02:52.1]} 9... Be7 {[%clk 0:02:59.4]}
10. Nxc6 {[%clk 0:02:45.4]} 10... Bxc6 {[%clk 0:02:59.1]} 11. Qe1 {[%clk
0:02:44.7]} 11... Qa5 {[%clk 0:02:55.5]} 12. Kb1 {[%clk 0:02:42.1]} 12... h6
{[%clk 0:02:49.7]} 13. Bxf6 {[%clk 0:01:58]} 13... Bxf6 {[%clk 0:02:49.3]} 14.
Nd5 {[%clk 0:01:58.6]} 14... Qxe1 {[%clk 0:02:47.4]} 15. Nxf6+ {[%clk
0:01:59.1]} 15... gxf6 {[%clk 0:02:45.1]} 16. Rxe1 {[%clk 0:01:59.6]} 16... Ke7
{[%clk 0:02:35.3]} 17. Re3 {[%clk 0:01:47.7]} 17... h5 {[%clk 0:02:27.2]} 18.
Be2 {[%clk 0:01:44.7]} 18... h4 {[%clk 0:02:26.9]} 19. Rd1 {[%clk 0:01:42.8]}
19... Rhg8 {[%clk 0:02:22.5]} 20. Bf3 {[%clk 0:01:42.7]} 20... e5 {[%clk
0:02:18]} 21. f5 {[%clk 0:01:31.5]} 21... Rad8 {[%clk 0:02:14.1]} 22. c4 {[%clk
0:01:30.6]} 22... Rc8 {[%clk 0:02:02.5]} 23. b3 {[%clk 0:01:22.5]} 23... b5
{[%clk 0:01:55.9]} 24. Rc1 {[%clk 0:01:12.9]} 24... Rgd8 {[%clk 0:01:50.4]} 25.
Rec3 {[%clk 0:01:07.9]} 25... b4 {[%clk 0:01:40.9]} 26. Rd3 {[%clk 0:01:07.3]}
26... Bb7 {[%clk 0:01:39.2]} 27. a3 {[%clk 0:01:00.1]} 27... a5 {[%clk
0:01:37.8]} 28. Kb2 {[%clk 0:01:00.7]} 28... bxa3+ {[%clk 0:01:11.2]} 29. Kxa3
{[%clk 0:01:00.7]} 29... Bc6 {[%clk 0:01:11.4]} 30. c5 {[%clk 0:00:48.3]} 30...
Bb5 {[%clk 0:00:46.8]} 31. Rxd6 {[%clk 0:00:42.1]} 31... Rxd6 {[%clk 0:00:10.5]}
32. cxd6+ {[%clk 0:00:41.9]} 32... Kd7 {[%clk 0:00:11]} 33. Rxc8 {[%clk
0:00:35.9]} 33... Kxc8 {[%clk 0:00:11]} 34. b4 {[%clk 0:00:35.7]} 34... axb4+
{[%clk 0:00:10.7]} 35. Kxb4 {[%clk 0:00:35.6]} 35... Bf1 {[%clk 0:00:09.2]} 36.
Kc5 {[%clk 0:00:31.3]} 36... Kd7 {[%clk 0:00:09.5]} 37. Kd5 {[%clk 0:00:31.1]}
37... Ba6 {[%clk 0:00:06.8]} 38. g3 {[%clk 0:00:09.8]} 38... hxg3 {[%clk
0:00:06.6]} 39. hxg3 {[%clk 0:00:07.4]} 39... Bb7+ {[%clk 0:00:06.7]} 40. Kc5
{[%clk 0:00:07.5]} 40... Ba6 {[%clk 0:00:07.3]} 41. Bd1 {[%clk 0:00:06.7]} 41...
Bd3 {[%clk 0:00:06.3]} 42. Ba4+ {[%clk 0:00:07.2]} 42... Kd8 {[%clk 0:00:06.5]}
43. Bc6 {[%clk 0:00:08.1]} 43... Bc2 {[%clk 0:00:05.5]} 44. Bd5 {[%clk
0:00:05.1]} 44... Kd7 {[%clk 0:00:04.5]} 45. Bc6+ {[%clk 0:00:04]} 45... Kd8
{[%clk 0:00:04.3]} 46. Kc4 {[%clk 0:00:04.6]} 46... Bb1 {[%clk 0:00:03.2]} 47.
Kc3 {[%clk 0:00:04.7]} 47... Ba2 {[%clk 0:00:01.6]} 48. Bb5 {[%clk 0:00:04.5]}
1-0

[Event "*** Titled Tuesday Blitz"]
[Site "Chess.com"]
[Date "2020.12.29"]
[Round "4"]
[White "mbojan"]
[Black "2nd_life"]
[Result "1-0"]
[WhiteElo "2681"]
[BlackElo "2480"]
[TimeControl "180+1"]
[EndTime "10:39:39 PST"]
[Termination "mbojan won on time"]

1. Nf3 {[%clk 0:03:00.9]} 1... Nf6 {[%clk 0:02:59.6]} 2. g3 {[%clk 0:03:01.3]}
2... d5 {[%clk 0:02:59.5]} 3. Bg2 {[%clk 0:03:01.7]} 3... c6 {[%clk 0:03:00]} 4.
O-O {[%clk 0:03:02.1]} 4... Bg4 {[%clk 0:03:00.6]} 5. Ne5 {[%clk 0:03:00.6]}
5... Bf5 {[%clk 0:03:00.4]} 6. d3 {[%clk 0:03:00.7]} 6... Nbd7 {[%clk
0:03:00.2]} 7. Nxd7 {[%clk 0:02:59.8]} 7... Qxd7 {[%clk 0:03:00.3]} 8. Nd2
{[%clk 0:03:00]} 8... Bh3 {[%clk 0:02:56.9]} 9. Nf3 {[%clk 0:02:31.9]} 9... h5
{[%clk 0:02:36.3]} 10. Bg5 {[%clk 0:02:18.5]} 10... Nh7 {[%clk 0:02:19.1]} 11.
Bf4 {[%clk 0:01:35.7]} 11... f6 {[%clk 0:02:18]} 12. e4 {[%clk 0:01:27.2]} 12...
h4 {[%clk 0:01:53.2]} 13. gxh4 {[%clk 0:00:28.5]} 13... g5 {[%clk 0:01:26.7]}
14. hxg5 {[%clk 0:00:20.2]} 14... Nxg5 {[%clk 0:01:17.7]} 15. Nxg5 {[%clk
0:00:14.4]} 15... Bxg2 {[%clk 0:01:13]} 16. Kxg2 {[%clk 0:00:13.4]} 16... fxg5
{[%clk 0:01:12.9]} 17. Bg3 {[%clk 0:00:13.9]} 17... Bg7 {[%clk 0:01:03.8]} 18.
Qf3 {[%clk 0:00:10]} 18... O-O-O {[%clk 0:00:46.3]} 19. Qf5 {[%clk 0:00:08.8]}
19... Qxf5 {[%clk 0:00:38.7]} 20. exf5 {[%clk 0:00:09.7]} 20... Bxb2 {[%clk
0:00:26.9]} 21. Rae1 {[%clk 0:00:09.3]} 21... Bf6 {[%clk 0:00:23]} 22. Kf3
{[%clk 0:00:09.5]} 22... g4+ {[%clk 0:00:18.9]} 23. Kxg4 {[%clk 0:00:09.4]}
23... Rdg8+ {[%clk 0:00:18.8]} 24. Kf3 {[%clk 0:00:03.3]} 24... Rh5 {[%clk
0:00:18.6]} 25. Kg2 {[%clk 0:00:03.7]} 25... Rxf5 {[%clk 0:00:18.3]} 26. c4
{[%clk 0:00:04.3]} 26... dxc4 {[%clk 0:00:12.5]} 27. dxc4 {[%clk 0:00:05.2]}
27... Ra5 {[%clk 0:00:12.7]} 28. Re2 {[%clk 0:00:05.2]} 28... Ra4 {[%clk
0:00:12.9]} 29. Rc1 {[%clk 0:00:05.2]} 29... Rg4 {[%clk 0:00:12.4]} 30. Rec2
{[%clk 0:00:05.5]} 30... Bg5 {[%clk 0:00:09.9]} 31. h3 {[%clk 0:00:05.6]} 31...
Re4 {[%clk 0:00:08.8]} 32. Kf3 {[%clk 0:00:03.8]} 32... Rd4 {[%clk 0:00:07]} 33.
Re1 {[%clk 0:00:03.6]} 33... Raxc4 {[%clk 0:00:06.2]} 34. Rxc4 {[%clk
0:00:04.5]} 34... Rxc4 {[%clk 0:00:06.6]} 35. Re5 {[%clk 0:00:05]} 35... Bf6
{[%clk 0:00:06.8]} 36. Re2 {[%clk 0:00:05.3]} 36... Rc3+ {[%clk 0:00:06.8]} 37.
Ke4 {[%clk 0:00:05.3]} 37... b5 {[%clk 0:00:07.1]} 38. Kf5 {[%clk 0:00:05.3]}
38... a5 {[%clk 0:00:06.6]} 39. h4 {[%clk 0:00:05.8]} 39... Rf3+ {[%clk
0:00:03.8]} 40. Kg4 {[%clk 0:00:05.4]} 40... Rd3 {[%clk 0:00:03.2]} 41. h5
{[%clk 0:00:05.6]} 41... Rd8 {[%clk 0:00:03.7]} 42. h6 {[%clk 0:00:05.6]} 42...
Rh8 {[%clk 0:00:03.9]} 43. Kh5 {[%clk 0:00:05.5]} 43... Bg7 {[%clk 0:00:03.8]}
44. Bf4 {[%clk 0:00:05.5]} 44... Kd7 {[%clk 0:00:03.8]} 45. Kg6 {[%clk
0:00:05.6]} 45... Bf6 {[%clk 0:00:03.6]} 46. h7 {[%clk 0:00:06]} 46... b4 {[%clk
0:00:03.6]} 47. Be5 {[%clk 0:00:05]} 47... Bxe5 {[%clk 0:00:02.1]} 48. Rxe5
{[%clk 0:00:05.9]} 48... a4 {[%clk 0:00:02.3]} 49. Kg7 {[%clk 0:00:03.8]} 1-0